Workbook

Sheet 综合成绩
A1: 附件1
A2: 广东省事业单位2025年集中公开招聘高校毕业生遂溪县事业单位（教育类）综合成绩及入围体检人员名单
A3: 序号 | B3: 准考证号 | C3: 姓名 | D3: 报考单位 | E3: 岗位代码 | F3: 岗位名称 | G3: 招聘人数 | H3: 笔试成绩 | I3: 面试成绩 | J3: 综合成绩 | K3: 综合名次 | L3: 是否进入体检 | M3: 备注
A4: 1 | B4: 251152406427 | C4: 蔡燕敏 | D4: 遂溪县杨柑中学 | E4: 2025001150947 | F4: 政治科组专业技术岗位十一级至十三级 | G4: 2 | H4: 61.00 | I4: 81.40 | J4: =ROUND(H4*0.5+I4*0.5,2) -> 71.20 | K4: 1 | L4: 是
A5: 2 | B5: 251151003917 | C5: 黄影眯 | D5: 遂溪县杨柑中学 | E5: 2025001150947 | F5: 政治科组专业技术岗位十一级至十三级 | G5: 2 | H5: 51.40 | I5: 84.70 | J5: 68.05 | K5: 2 | L5: 是
A6: 3 | B6: 251151900521 | C6: 李春梅 | D6: 遂溪县杨柑中学 | E6: 2025001150947 | F6: 政治科组专业技术岗位十一级至十三级 | G6: 2 | H6: 50.20 | I6: 80.10 | J6: 65.15 | K6: 3
A7: 4 | B7: 251151602226 | C7: 何朗 | D7: 遂溪县第一中学 | E7: 2025001150948 | F7: 语文科组专业技术岗位十一级至十三级 | G7: 2 | H7: 67.80 | I7: 78.60 | J7: 73.20 | K7: 1 | L7: 是
A8: 5 | B8: 251151905710 | C8: 钟文然 | D8: 遂溪县第一中学 | E8: 2025001150948 | F8: 语文科组专业技术岗位十一级至十三级 | G8: 2 | H8: 64.00 | I8: 75.60 | J8: 69.80 | K8: 2 | L8: 是
A9: 6 | B9: 251151902722 | C9: 王思政 | D9: 遂溪县第一中学 | E9: 2025001150948 | F9: 语文科组专业技术岗位十一级至十三级 | G9: 2 | H9: 57.50 | I9: 82.00 | J9: 69.75 | K9: 3
A10: 7 | B10: 251150802220 | C10: 陈小湘 | D10: 遂溪县第一中学 | E10: 2025001150948 | F10: 语文科组专业技术岗位十一级至十三级 | G10: 2 | H10: 61.10 | I10: 缺考
A11: 8 | B11: 251152204002 | C11: 杨文轩 | D11: 遂溪县第一中学 | E11: 2025001150948 | F11: 语文科组专业技术岗位十一级至十三级 | G11: 2 | H11: 54.60 | I11: 缺考
A12: 9 | B12: 251151202024 | C12: 陈舒媚 | D12: 遂溪县杨柑中学 | E12: 2025001150950 | F12: 语文科组专业技术岗位十一级至十三级 | G12: 3 | H12: 63.80 | I12: 82.10 | J12: =ROUND(H12*0.5+I12*0.5,2) -> 72.95 | K12: 1 | L12: 是
A13: 10 | B13: 251150902519 | C13: 谭滋雨 | D13: 遂溪县杨柑中学 | E13: 2025001150950 | F13: 语文科组专业技术岗位十一级至十三级 | G13: 3 | H13: 63.20 | I13: 77.10 | J13: =ROUND(H13*0.5+I13*0.5,2) -> 70.15 | K13: 2 | L13: 是
A14: 11 | B14: 251151105119 | C14: 林培双 | D14: 遂溪县杨柑中学 | E14: 2025001150950 | F14: 语文科组专业技术岗位十一级至十三级 | G14: 3 | H14: 60.50 | I14: 72.70 | J14: =ROUND(H14*0.5+I14*0.5,2) -> 66.60 | K14: 3 | L14: 是
A15: 12 | B15: 251152104305 | C15: 李永顺 | D15: 遂溪县杨柑中学 | E15: 2025001150950 | F15: 语文科组专业技术岗位十一级至十三级 | G15: 3 | H15: 56.00 | I15: 缺考
A16: 13 | B16: 251151800721 | C16: 张伟泉 | D16: 遂溪县杨柑中学 | E16: 2025001150951 | F16: 语文科组专业技术岗位十一级至十三级 | G16: 2 | H16: 56.20 | I16: 75.70 | J16: =ROUND(H16*0.5+I16*0.5,2) -> 65.95 | K16: 1 | L16: 是
A17: 14 | B17: 251150500716 | C17: 郑晓婷 | D17: 遂溪县大成中学 | E17: 2025001150952 | F17: 数学科组专业技术岗位十一级至十三级 | G17: 3 | H17: 63.80 | I17: 85.00 | J17: 74.40 | K17: 1 | L17: 是
A18: 15 | B18: 251151201810 | C18: 王家敏 | D18: 遂溪县大成中学 | E18: 2025001150952 | F18: 数学科组专业技术岗位十一级至十三级 | G18: 3 | H18: 62.90 | I18: 85.50 | J18: 74.20 | K18: 2 | L18: 是
A19: 16 | B19: 251150503304 | C19: 马景丽 | D19: 遂溪县大成中学 | E19: 2025001150952 | F19: 数学科组专业技术岗位十一级至十三级 | G19: 3 | H19: 56.90 | I19: 84.60 | J19: 70.75 | K19: 3 | L19: 是
A20: 17 | B20: 251151905411 | C20: 黎法永 | D20: 遂溪县大成中学 | E20: 2025001150952 | F20: 数学科组专业技术岗位十一级至十三级 | G20: 3 | H20: 53.60 | I20: 79.90 | J20: 66.75 | K20: 4
A21: 18 | B21: 251151001109 | C21: 叶晓萍 | D21: 遂溪县大成中学 | E21: 2025001150952 | F21: 数学科组专业技术岗位十一级至十三级 | G21: 3 | H21: 51.20 | I21: 78.80 | J21: 65.00 | K21: 5
A22: 19 | B22: 251151704016 | C22: 杨紫晴 | D22: 遂溪县第一中学 | E22: 2025001150955 | F22: 英语科组专业技术岗位十一级至十三级 | G22: 2 | H22: 76.00 | I22: 77.40 | J22: 76.70 | K22: 1 | L22: 是
A23: 20 | B23: 251150900209 | C23: 冯升泓 | D23: 遂溪县第一中学 | E23: 2025001150955 | F23: 英语科组专业技术岗位十一级至十三级 | G23: 2 | H23: 69.50 | I23: 83.70 | J23: 76.60 | K23: 2 | L23: 是
A24: 21 | B24: 251152303618 | C24: 陈康平 | D24: 遂溪县第一中学 | E24: 2025001150955 | F24: 英语科组专业技术岗位十一级至十三级 | G24: 2 | H24: 64.50 | I24: 81.50 | J24: 73.00 | K24: 3
A25: 22 | B25: 251151405730 | C25: 林映余 | D25: 遂溪县第一中学 | E25: 2025001150955 | F25: 英语科组专业技术岗位十一级至十三级 | G25: 2 | H25: 65.80 | I25: 78.40 | J25: 72.10 | K25: 4
A26: 23 | B26: 251151703407 | C26: 李均 | D26: 遂溪县第一中学 | E26: 2025001150955 | F26: 英语科组专业技术岗位十一级至十三级 | G26: 2 | H26: 70.70 | I26: 72.00 | J26: 71.35 | K26: 5
A27: 24 | B27: 251151000619 | C27: 黄欣欣 | D27: 遂溪县第一中学 | E27: 2025001150955 | F27: 英语科组专业技术岗位十一级至十三级 | G27: 2 | H27: 62.60 | I27: 75.60 | J27: 69.10 | K27: 6
A28: 25 | B28: 251150504002 | C28: 周月微 | D28: 遂溪县杨柑中学 | E28: 2025001150956 | F28: 英语科组专业技术岗位十一级至十三级 | G28: 4 | H28: 75.70 | I28: 77.00 | J28: 76.35 | K28: 1 | L28: 是
A29: 26 | B29: 251151400622 | C29: 杨雨晴 | D29: 遂溪县杨柑中学 | E29: 2025001150956 | F29: 英语科组专业技术岗位十一级至十三级 | G29: 4 | H29: 60.10 | I29: 89.50 | J29: 74.80 | K29: 2 | L29: 是
A30: 27 | B30: 251150207227 | C30: 樊君蕊 | D30: 遂溪县杨柑中学 | E30: 2025001150956 | F30: 英语科组专业技术岗位十一级至十三级 | G30: 4 | H30: 60.10 | I30: 83.90 | J30: 72.00 | K30: 3 | L30: 是
A31: 28 | B31: 251151302512 | C31: 何雨婷 | D31: 遂溪县杨柑中学 | E31: 2025001150956 | F31: 英语科组专业技术岗位十一级至十三级 | G31: 4 | H31: 61.50 | I31: 82.20 | J31: 71.85 | K31: 4 | L31: 是
A32: 29 | B32: 251151003218 | C32: 赖安然 | D32: 遂溪县杨柑中学 | E32: 2025001150956 | F32: 英语科组专业技术岗位十一级至十三级 | G32: 4 | H32: 67.20 | I32: 71.40 | J32: 69.30 | K32: 5
A33: 30 | B33: 251150104816 | C33: 王倩怡 | D33: 遂溪县杨柑中学 | E33: 2025001150956 | F33: 英语科组专业技术岗位十一级至十三级 | G33: 4 | H33: 58.80 | I33: 78.20 | J33: 68.50 | K33: 6
A34: 31 | B34: 251150901906 | C34: 吴丽萍 | D34: 遂溪县杨柑中学 | E34: 2025001150956 | F34: 英语科组专业技术岗位十一级至十三级 | G34: 4 | H34: 61.40 | I34: 73.80 | J34: 67.60 | K34: 7
A35: 32 | B35: 251152103503 | C35: 陈日生 | D35: 遂溪县杨柑中学 | E35: 2025001150956 | F35: 英语科组专业技术岗位十一级至十三级 | G35: 4 | H35: 57.70 | I35: 76.10 | J35: 66.90 | K35: 8
A36: 33 | B36: 251150504923 | C36: 梁瑜华 | D36: 遂溪县杨柑中学 | E36: 2025001150956 | F36: 英语科组专业技术岗位十一级至十三级 | G36: 4 | H36: 55.30 | I36: 77.90 | J36: 66.60 | K36: 9
A37: 34 | B37: 251150300918 | C37: 黄陈莲 | D37: 遂溪县杨柑中学 | E37: 2025001150956 | F37: 英语科组专业技术岗位十一级至十三级 | G37: 4 | H37: 59.20 | I37: 73.50 | J37: 66.35 | K37: 10
A38: 35 | B38: 251151102506 | C38: 方素梅 | D38: 遂溪县杨柑中学 | E38: 2025001150956 | F38: 英语科组专业技术岗位十一级至十三级 | G38: 4 | H38: 55.70 | I38: 76.40 | J38: 66.05 | K38: 11
A39: 36 | B39: 251150902603 | C39: 郭英婵 | D39: 遂溪县杨柑中学 | E39: 2025001150956 | F39: 英语科组专业技术岗位十一级至十三级 | G39: 4 | H39: 57.30 | I39: 74.20 | J39: 65.75 | K39: 12
A40: 37 | B40: 251152404003 | C40: 张婉玲 | D40: 遂溪县杨柑中学 | E40: 2025001150956 | F40: 英语科组专业技术岗位十一级至十三级 | G40: 4 | H40: 65.90 | I40: 64.40 | J40: 65.15 | K40: 13
A41: 38 | B41: 251151205009 | C41: 陈小芬 | D41: 遂溪县杨柑中学 | E41: 2025001150956 | F41: 英语科组专业技术岗位十一级至十三级 | G41: 4 | H41: 61.10 | I41: 68.40 | J41: 64.75 | K41: 14
A42: 39 | B42: 251151904920 | C42: 陆银苹 | D42: 遂溪县杨柑中学 | E42: 2025001150956 | F42: 英语科组专业技术岗位十一级至十三级 | G42: 4 | H42: 52.50 | I42: 75.50 | J42: 64.00 | K42: 15
A43: 40 | B43: 251150503128 | C43: 李倩茹 | D43: 遂溪县杨柑中学 | E43: 2025001150956 | F43: 英语科组专业技术岗位十一级至十三级 | G43: 4 | H43: 53.60 | I43: 73.40 | J43: 63.50 | K43: 16
A44: 41 | B44: 251150300427 | C44: 陈景婷 | D44: 遂溪县杨柑中学 | E44: 2025001150956 | F44: 英语科组专业技术岗位十一级至十三级 | G44: 4 | H44: 56.60 | I44: 69.10 | J44: 62.85 | K44: 17
A45: 42 | B45: 251150403309 | C45: 郭晓冰 | D45: 遂溪县杨柑中学 | E45: 2025001150956 | F45: 英语科组专业技术岗位十一级至十三级 | G45: 4 | H45: 64.20 | I45: 放弃 | M45: 进入备课后放弃
A46: 43 | B46: 251151202704 | C46: 周桂娴 | D46: 遂溪县大成中学 | E46: 2025001150957 | F46: 物理科组专业技术岗位十一级至十三级 | G46: 1 | H46: 60.90 | I46: 85.90 | J46: =ROUND(H46*0.5+I46*0.5,2) -> 73.40 | K46: 1 | L46: 是
A47: 44 | B47: 251150101626 | C47: 周煜乔 | D47: 遂溪县大成中学 | E47: 2025001150957 | F47: 物理科组专业技术岗位十一级至十三级 | G47: 1 | H47: 61.90 | I47: 76.80 | J47: 69.35 | K47: 2
A48: 45 | B48: 251152002816 | C48: 李景德 | D48: 遂溪县大成中学 | E48: 2025001150957 | F48: 物理科组专业技术岗位十一级至十三级 | G48: 1 | H48: 58.90 | I48: 79.70 | J48: 69.30 | K48: 3
A49: 46 | B49: 251152400506 | C49: 陈俊宇 | D49: 遂溪县大成中学 | E49: 2025001150957 | F49: 物理科组专业技术岗位十一级至十三级 | G49: 1 | H49: 53.00 | I49: 65.60 | J49: 59.30 | K49: 4
A50: 47 | B50: 251151205028 | C50: 冼金海 | D50: 遂溪县杨柑中学 | E50: 2025001150958 | F50: 物理科组专业技术岗位十一级至十三级 | G50: 2 | H50: 56.30 | I50: 82.00 | J50: 69.15 | K50: 1 | L50: 是
A51: 48 | B51: 251152303125 | C51: 刘舒琪 | D51: 遂溪县杨柑中学 | E51: 2025001150959 | F51: 化学科组专业技术岗位十一级至十三级 | G51: 2 | H51: 58.50 | I51: 85.20 | J51: 71.85 | K51: 1 | L51: 是
A52: 49 | B52: 251151304623 | C52: 全宇森 | D52: 遂溪县杨柑中学 | E52: 2025001150959 | F52: 化学科组专业技术岗位十一级至十三级 | G52: 2 | H52: 57.40 | I52: 81.10 | J52: 69.25 | K52: 2 | L52: 是
A53: 50 | B53: 251152003202 | C53: 温华飞 | D53: 遂溪县杨柑中学 | E53: 2025001150959 | F53: 化学科组专业技术岗位十一级至十三级 | G53: 2 | H53: 53.30 | I53: 82.80 | J53: 68.05 | K53: 3
A54: 51 | B54: 251150504028 | C54: 何健荣 | D54: 遂溪县杨柑中学 | E54: 2025001150959 | F54: 化学科组专业技术岗位十一级至十三级 | G54: 2 | H54: 55.10 | I54: 缺考
A55: 52 | B55: 251151303216 | C55: 吴世顺 | D55: 遂溪县杨柑中学 | E55: 2025001150960 | F55: 历史科组专业技术岗位十一级至十三级 | G55: 3 | H55: 64.40 | I55: 86.30 | J55: =ROUND(H55*0.5+I55*0.5,2) -> 75.35 | K55: 1 | L55: 是
A56: 53 | B56: 251150301416 | C56: 杨帆 | D56: 遂溪县杨柑中学 | E56: 2025001150960 | F56: 历史科组专业技术岗位十一级至十三级 | G56: 3 | H56: 60.30 | I56: 82.40 | J56: 71.35 | K56: 2 | L56: 是
A57: 54 | B57: 251151604810 | C57: 毛观梅 | D57: 遂溪县杨柑中学 | E57: 2025001150960 | F57: 历史科组专业技术岗位十一级至十三级 | G57: 3 | H57: 55.20 | I57: 84.90 | J57: 70.05 | K57: 3 | L57: 是
A58: 55 | B58: 251152102414 | C58: 林荣保 | D58: 遂溪县杨柑中学 | E58: 2025001150960 | F58: 历史科组专业技术岗位十一级至十三级 | G58: 3 | H58: 59.10 | I58: 80.90 | J58: 70.00 | K58: 4
A59: 56 | B59: 251152004808 | C59: 凌华丽 | D59: 遂溪县杨柑中学 | E59: 2025001150960 | F59: 历史科组专业技术岗位十一级至十三级 | G59: 3 | H59: 58.80 | I59: 78.10 | J59: 68.45 | K59: 5
A60: 57 | B60: 251151201814 | C60: 全海天 | D60: 遂溪县杨柑中学 | E60: 2025001150960 | F60: 历史科组专业技术岗位十一级至十三级 | G60: 3 | H60: 54.60 | I60: 82.20 | J60: 68.40 | K60: 6
A61: 58 | B61: 251151205518 | C61: 杨思海 | D61: 遂溪县杨柑中学 | E61: 2025001150960 | F61: 历史科组专业技术岗位十一级至十三级 | G61: 3 | H61: 62.00 | I61: 72.80 | J61: 67.40 | K61: 7
A62: 59 | B62: 251151605910 | C62: 谢丹怡 | D62: 遂溪县杨柑中学 | E62: 2025001150960 | F62: 历史科组专业技术岗位十一级至十三级 | G62: 3 | H62: 50.30 | I62: 76.90 | J62: 63.60 | K62: 8
A63: 60 | B63: 251150401326 | C63: 陈昱嘉 | D63: 遂溪县大成中学 | E63: 2025001150961 | F63: 地理科组专业技术岗位十一级至十三级 | G63: 1 | H63: 67.20 | I63: 83.30 | J63: 75.25 | K63: 1 | L63: 是
A64: 61 | B64: 251151302312 | C64: 蔡明洁 | D64: 遂溪县大成中学 | E64: 2025001150961 | F64: 地理科组专业技术岗位十一级至十三级 | G64: 1 | H64: 61.10 | I64: 84.50 | J64: 72.80 | K64: 2
A65: 62 | B65: 251151300702 | C65: 王春媚 | D65: 遂溪县大成中学 | E65: 2025001150961 | F65: 地理科组专业技术岗位十一级至十三级 | G65: 1 | H65: 52.50 | I65: 79.70 | J65: 66.10 | K65: 3
A66: 63 | B66: 251151303705 | C66: 陈木青 | D66: 遂溪县大成中学 | E66: 2025001150961 | F66: 地理科组专业技术岗位十一级至十三级 | G66: 1 | H66: 60.20 | I66: 0.00 | M66: 违规取消成绩
A67: 64 | B67: 251151205422 | C67: 伍观煊 | D67: 遂溪县大成中学 | E67: 2025001150961 | F67: 地理科组专业技术岗位十一级至十三级 | G67: 1 | H67: 59.00 | I67: 缺考
A68: 65 | B68: 251150901501 | C68: 麦冬宇 | D68: 遂溪县杨柑中学 | E68: 2025001150963 | F68: 生物科组专业技术岗位十一级至十三级 | G68: 2 | H68: 63.00 | I68: 84.70 | J68: =ROUND(H68*0.5+I68*0.5,2) -> 73.85 | K68: 1 | L68: 是
A69: 66 | B69: 251150103124 | C69: 杨蔼凤 | D69: 遂溪县杨柑中学 | E69: 2025001150963 | F69: 生物科组专业技术岗位十一级至十三级 | G69: 2 | H69: 55.50 | I69: 83.60 | J69: 69.55 | K69: 2 | L69: 是
A70: 67 | B70: 251151901215 | C70: 刘华桃 | D70: 遂溪县杨柑中学 | E70: 2025001150963 | F70: 生物科组专业技术岗位十一级至十三级 | G70: 2 | H70: 57.20 | I70: 79.30 | J70: 68.25 | K70: 3
A71: 68 | B71: 251150601112 | C71: 李晓燕 | D71: 遂溪县杨柑中学 | E71: 2025001150963 | F71: 生物科组专业技术岗位十一级至十三级 | G71: 2 | H71: 55.10 | I71: 81.00 | J71: 68.05 | K71: 4
A72: 69 | B72: 251150600912 | C72: 蔡春园 | D72: 遂溪县杨柑中学 | E72: 2025001150963 | F72: 生物科组专业技术岗位十一级至十三级 | G72: 2 | H72: 54.10 | I72: 80.80 | J72: 67.45 | K72: 5
A73: 70 | B73: 251150502119 | C73: 孔妙樱 | D73: 遂溪县杨柑中学 | E73: 2025001150963 | F73: 生物科组专业技术岗位十一级至十三级 | G73: 2 | H73: 52.00 | I73: 78.10 | J73: 65.05 | K73: 6
A74: 71 | B74: 251150101710 | C74: 陈春辉 | D74: 遂溪县杨柑中学 | E74: 2025001150964 | F74: 美术科组专业技术岗位十一级至十三级 | G74: 1 | H74: 62.00 | I74: 88.90 | J74: 75.45 | K74: 1 | L74: 是
A75: 72 | B75: 251151302922 | C75: 陈燕敏 | D75: 遂溪县杨柑中学 | E75: 2025001150964 | F75: 美术科组专业技术岗位十一级至十三级 | G75: 1 | H75: 69.80 | I75: 78.20 | J75: 74.00 | K75: 2
A76: 73 | B76: 251150800317 | C76: 潘柏琪 | D76: 遂溪县杨柑中学 | E76: 2025001150964 | F76: 美术科组专业技术岗位十一级至十三级 | G76: 1 | H76: 65.80 | I76: 77.70 | J76: 71.75 | K76: 3
A77: 74 | B77: 251150602211 | C77: 周碧仪 | D77: 遂溪县杨柑中学 | E77: 2025001150964 | F77: 美术科组专业技术岗位十一级至十三级 | G77: 1 | H77: 64.40 | I77: 61.50 | J77: 62.95 | K77: 4
A78: 75 | B78: 251150400303 | C78: 陈怡清 | D78: 遂溪县杨柑中学 | E78: 2025001150964 | F78: 美术科组专业技术岗位十一级至十三级 | G78: 1 | H78: 60.80 | I78: 缺考
A79: 76 | B79: 251150201911 | C79: 陈倩男 | D79: 遂溪县杨柑中学 | E79: 2025001150965 | F79: 舞蹈科组专业技术岗位十一级至十三级 | G79: 1 | H79: 51.90 | I79: 79.50 | J79: =ROUND(H79*0.5+I79*0.5,2) -> 65.70 | K79: 1 | L79: 是
A80: 77 | B80: 251151402908 | C80: 李承润 | D80: 遂溪县第一中学 | E80: 2025001150966 | F80: 体育科组专业技术岗位十一级至十三级 | G80: 1 | H80: 68.90 | I80: 84.20 | J80: 76.55 | K80: 1 | L80: 是
A81: 78 | B81: 251152200411 | C81: 陈景耀 | D81: 遂溪县第一中学 | E81: 2025001150966 | F81: 体育科组专业技术岗位十一级至十三级 | G81: 1 | H81: 60.00 | I81: 83.80 | J81: 71.90 | K81: 2
A82: 79 | B82: 251150302206 | C82: 谭景妹 | D82: 遂溪县第一中学 | E82: 2025001150966 | F82: 体育科组专业技术岗位十一级至十三级 | G82: 1 | H82: 61.50 | I82: 76.70 | J82: 69.10 | K82: 3
A83: 80 | B83: 251151502303 | C83: 罗流锦 | D83: 遂溪县第一中学 | E83: 2025001150966 | F83: 体育科组专业技术岗位十一级至十三级 | G83: 1 | H83: 54.20 | I83: 74.70 | J83: 64.45 | K83: 4
A84: 81 | B84: 251150704423 | C84: 王进娣 | D84: 遂溪县杨柑中学 | E84: 2025001150967 | F84: 体育科组专业技术岗位十一级至十三级 | G84: 2 | H84: 58.50 | I84: 81.70 | J84: 70.10 | K84: 1 | L84: 是
A85: 82 | B85: 251151103228 | C85: 赵崇旭 | D85: 遂溪县杨柑中学 | E85: 2025001150967 | F85: 体育科组专业技术岗位十一级至十三级 | G85: 2 | H85: 57.10 | I85: 79.00 | J85: 68.05 | K85: 2 | L85: 是
A86: 83 | B86: 251152200410 | C86: 刘卓芸 | D86: 遂溪县杨柑中学 | E86: 2025001150967 | F86: 体育科组专业技术岗位十一级至十三级 | G86: 2 | H86: 52.50 | I86: 81.10 | J86: 66.80 | K86: 3
A87: 84 | B87: 251152200230 | C87: 龙景辉 | D87: 遂溪县杨柑中学 | E87: 2025001150967 | F87: 体育科组专业技术岗位十一级至十三级 | G87: 2 | H87: 57.40 | I87: 75.90 | J87: 66.65 | K87: 4
A88: 85 | B88: 251152201528 | C88: 李冠周 | D88: 遂溪县杨柑中学 | E88: 2025001150967 | F88: 体育科组专业技术岗位十一级至十三级 | G88: 2 | H88: 50.20 | I88: 83.00 | J88: 66.60 | K88: 5
A89: 86 | B89: 251150601527 | C89: 何剑锋 | D89: 遂溪县杨柑中学 | E89: 2025001150967 | F89: 体育科组专业技术岗位十一级至十三级 | G89: 2 | H89: 51.90 | I89: 77.10 | J89: 64.50 | K89: 6
A90: 87 | B90: 251151903425 | C90: 张玮浩 | D90: 遂溪县杨柑中学 | E90: 2025001150967 | F90: 体育科组专业技术岗位十一级至十三级 | G90: 2 | H90: 50.30 | I90: 缺考
A91: 88 | B91: 251150403525 | C91: 赵文怡 | D91: 遂溪县戊戌中学 | E91: 2025001150968 | F91: 体育科组专业技术岗位十一级至十三级 | G91: 1 | H91: 50.50 | I91: 83.80 | J91: =ROUND(H91*0.5+I91*0.5,2) -> 67.15 | K91: 1 | L91: 是
A92: 89 | B92: 251150208603 | C92: 陈日得 | D92: 遂溪县戊戌中学 | E92: 2025001150968 | F92: 体育科组专业技术岗位十一级至十三级 | G92: 1 | H92: 56.80 | I92: 77.10 | J92: 66.95 | K92: 2
A93: 90 | B93: 251150301729 | C93: 蔡绵城 | D93: 遂溪县戊戌中学 | E93: 2025001150968 | F93: 体育科组专业技术岗位十一级至十三级 | G93: 1 | H93: 52.00 | I93: 75.00 | J93: 63.50 | K93: 3
A94: 91 | B94: 251151907012 | C94: 吴国鼎 | D94: 遂溪县洋青中学 | E94: 2025001150969 | F94: 体育科组专业技术岗位十一级至十三级 | G94: 1 | H94: 59.30 | I94: 82.40 | J94: 70.85 | K94: 1 | L94: 是
A95: 92 | B95: 251150704513 | C95: 陈德民 | D95: 遂溪县洋青中学 | E95: 2025001150969 | F95: 体育科组专业技术岗位十一级至十三级 | G95: 1 | H95: 60.10 | I95: 80.70 | J95: 70.40 | K95: 2
A96: 93 | B96: 251151102727 | C96: 唐定远 | D96: 遂溪县洋青中学 | E96: 2025001150969 | F96: 体育科组专业技术岗位十一级至十三级 | G96: 1 | H96: 53.90 | I96: 81.60 | J96: 67.75 | K96: 3
A97: 94 | B97: 251152402621 | C97: 宋致远 | D97: 遂溪县洋青中学 | E97: 2025001150969 | F97: 体育科组专业技术岗位十一级至十三级 | G97: 1 | H97: 52.20 | I97: 81.20 | J97: 66.70 | K97: 4
A98: 95 | B98: 251150801313 | C98: 刘嘉杰 | D98: 遂溪县洋青中学 | E98: 2025001150969 | F98: 体育科组专业技术岗位十一级至十三级 | G98: 1 | H98: 50.30 | I98: 80.00 | J98: 65.15 | K98: 5
A99: 96 | B99: 251151504019 | C99: 陈鸣润 | D99: 遂溪县遂城第五小学 | E99: 2025001150970 | F99: 体育科组专业技术岗位十一级至十三级 | G99: 1 | H99: 66.50 | I99: 78.90 | J99: 72.70 | K99: 1 | L99: 是
A100: 97 | B100: 251152200206 | C100: 孙宇彬 | D100: 遂溪县遂城第五小学 | E100: 2025001150970 | F100: 体育科组专业技术岗位十一级至十三级 | G100: 1 | H100: 54.40 | I100: 76.60 | J100: 65.50 | K100: 2
A101: 98 | B101: 251152300316 | C101: 吴美燕 | D101: 遂溪县遂城第五小学 | E101: 2025001150970 | F101: 体育科组专业技术岗位十一级至十三级 | G101: 1 | H101: 52.70 | I101: 69.50 | J101: 61.10 | K101: 3
A102: 99 | B102: 251151501212 | C102: 陈广城 | D102: 遂溪县遂城第十三小学 | E102: 2025001150971 | F102: 体育科组专业技术岗位十一级至十三级 | G102: 2 | H102: 64.70 | I102: 81.40 | J102: 73.05 | K102: 1 | L102: 是
A103: 100 | B103: 251151400107 | C103: 李俊霖 | D103: 遂溪县遂城第十三小学 | E103: 2025001150971 | F103: 体育科组专业技术岗位十一级至十三级 | G103: 2 | H103: 56.90 | I103: 81.60 | J103: 69.25 | K103: 2 | L103: 是
A104: 101 | B104: 251152203028 | C104: 麦哲玮 | D104: 遂溪县遂城第十三小学 | E104: 2025001150971 | F104: 体育科组专业技术岗位十一级至十三级 | G104: 2 | H104: 55.40 | I104: 81.80 | J104: 68.60 | K104: 3
A105: 102 | B105: 251150303105 | C105: 陈俊彤 | D105: 遂溪县遂城第十三小学 | E105: 2025001150971 | F105: 体育科组专业技术岗位十一级至十三级 | G105: 2 | H105: 51.60 | I105: 84.60 | J105: 68.10 | K105: 4
A106: 103 | B106: 251150202203 | C106: 麦嘉俊 | D106: 遂溪县遂城第十三小学 | E106: 2025001150971 | F106: 体育科组专业技术岗位十一级至十三级 | G106: 2 | H106: 57.60 | I106: 75.40 | J106: 66.50 | K106: 5
A107: 104 | B107: 251151702322 | C107: 邹志豪 | D107: 遂溪县遂城第十三小学 | E107: 2025001150971 | F107: 体育科组专业技术岗位十一级至十三级 | G107: 2 | H107: 51.60 | I107: 81.00 | J107: 66.30 | K107: 6
A108: 105 | B108: 251152406003 | C108: 梁少苗 | D108: 遂溪县北坡中学 | E108: 2025001150972 | F108: 道德与法治科组专业技术岗位十一级至十三级 | G108: 1 | H108: 60.30 | I108: 87.50 | J108: 73.90 | K108: 1 | L108: 是
A109: 106 | B109: 251151902730 | C109: 黄岚英 | D109: 遂溪县北坡中学 | E109: 2025001150972 | F109: 道德与法治科组专业技术岗位十一级至十三级 | G109: 1 | H109: 57.70 | I109: 86.60 | J109: 72.15 | K109: 2
A110: 107 | B110: 251151103415 | C110: 李敏霞 | D110: 遂溪县戊戌中学 | E110: 2025001150973 | F110: 道德与法治科组专业技术岗位十一级至十三级 | G110: 1 | H110: 61.00 | I110: 86.20 | J110: 73.60 | K110: 1 | L110: 是
A111: 108 | B111: 251152006123 | C111: 蔡敏婷 | D111: 遂溪县戊戌中学 | E111: 2025001150973 | F111: 道德与法治科组专业技术岗位十一级至十三级 | G111: 1 | H111: 57.70 | I111: 86.50 | J111: 72.10 | K111: 2
A112: 109 | B112: 251150204513 | C112: 王冬梅 | D112: 遂溪县大成初级中学 | E112: 2025001150974 | F112: 道德与法治科组专业技术岗位十一级至十三级 | G112: 1 | H112: 65.20 | I112: 84.30 | J112: 74.75 | K112: 1 | L112: 是
A113: 110 | B113: 251151302602 | C113: 麦依曼 | D113: 遂溪县大成初级中学 | E113: 2025001150974 | F113: 道德与法治科组专业技术岗位十一级至十三级 | G113: 1 | H113: 60.10 | I113: 83.20 | J113: 71.65 | K113: 2
A114: 111 | B114: 251151605008 | C114: 吴彦霖 | D114: 遂溪县遂城第二初级中学 | E114: 2025001150975 | F114: 道德与法治科组专业技术岗位十一级至十三级 | G114: 1 | H114: 57.90 | I114: 81.20 | J114: 69.55 | K114: 1 | L114: 是
A115: 112 | B115: 251151504307 | C115: 黄莉 | D115: 遂溪县遂城第二初级中学 | E115: 2025001150975 | F115: 道德与法治科组专业技术岗位十一级至十三级 | G115: 1 | H115: 56.40 | I115: 75.90 | J115: 66.15 | K115: 2
A116: 113 | B116: 251151906326 | C116: 钟秀萍 | D116: 遂溪县遂城第四小学 | E116: 2025001150976 | F116: 道德与法治科组专业技术岗位十一级至十三级 | G116: 1 | H116: 61.90 | I116: 86.90 | J116: 74.40 | K116: 1 | L116: 是
A117: 114 | B117: 251150800930 | C117: 林雅虹 | D117: 遂溪县遂城第四小学 | E117: 2025001150976 | F117: 道德与法治科组专业技术岗位十一级至十三级 | G117: 1 | H117: 50.80 | I117: 79.30 | J117: 65.05 | K117: 2
A118: 115 | B118: 251151401927 | C118: 覃惠妍 | D118: 遂溪县遂城第四小学 | E118: 2025001150976 | F118: 道德与法治科组专业技术岗位十一级至十三级 | G118: 1 | H118: 53.50 | I118: 缺考
A119: 116 | B119: 251151601524 | C119: 徐思宇 | D119: 遂溪县遂城第十三小学 | E119: 2025001150977 | F119: 道德与法治科组专业技术岗位十一级至十三级 | G119: 1 | H119: 58.30 | I119: 83.90 | J119: =ROUND(H119*0.5+I119*0.5,2) -> 71.10 | K119: 1 | L119: 是
A120: 117 | B120: 251151104509 | C120: 颜文婕 | D120: 遂溪县遂城第十三小学 | E120: 2025001150977 | F120: 道德与法治科组专业技术岗位十一级至十三级 | G120: 1 | H120: 58.50 | I120: 83.00 | J120: =ROUND(H120*0.5+I120*0.5,2) -> 70.75 | K120: 2
A121: 118 | B121: 251152203130 | C121: 黎俊懿 | D121: 遂溪县遂城第十三小学 | E121: 2025001150977 | F121: 道德与法治科组专业技术岗位十一级至十三级 | G121: 1 | H121: 53.40 | I121: 75.50 | J121: =ROUND(H121*0.5+I121*0.5,2) -> 64.45 | K121: 3
A122: 119 | B122: 251151606007 | C122: 林晓清 | D122: 遂溪县遂城第十三小学 | E122: 2025001150977 | F122: 道德与法治科组专业技术岗位十一级至十三级 | G122: 1 | H122: 53.00 | I122: 缺考
A123: 120 | B123: 251150302316 | C123: 周柔伶 | D123: 遂溪县城月中学 | E123: 2025001150978 | F123: 语文科组专业技术岗位十一级至十三级 | G123: 3 | H123: 55.10 | I123: 87.50 | J123: =ROUND(H123*0.5+I123*0.5,2) -> 71.30 | K123: 1 | L123: 是
A124: 121 | B124: 251151602323 | C124: 黄春媚 | D124: 遂溪县城月中学 | E124: 2025001150978 | F124: 语文科组专业技术岗位十一级至十三级 | G124: 3 | H124: 53.30 | I124: 74.20 | J124: 63.75 | K124: 2 | L124: 是
A125: 122 | B125: 251150803310 | C125: 陈妮娜 | D125: 遂溪县城月中学 | E125: 2025001150978 | F125: 语文科组专业技术岗位十一级至十三级 | G125: 3 | H125: 50.10 | I125: 76.60 | J125: 63.35 | K125: 3 | L125: 是
A126: 123 | B126: 251152302912 | C126: 吴娇 | D126: 遂溪县北坡中学 | E126: 2025001150979 | F126: 语文科组专业技术岗位十一级至十三级 | G126: 2 | H126: 57.30 | I126: 85.60 | J126: 71.45 | K126: 1 | L126: 是
A127: 124 | B127: 251152201229 | C127: 吴嘉奕 | D127: 遂溪县北坡中学 | E127: 2025001150979 | F127: 语文科组专业技术岗位十一级至十三级 | G127: 2 | H127: 64.90 | I127: 77.30 | J127: 71.10 | K127: 2 | L127: 是
A128: 125 | B128: 251151505801 | C128: 吴世椿 | D128: 遂溪县戊戌中学 | E128: 2025001150980 | F128: 语文科组专业技术岗位十一级至十三级 | G128: 2 | H128: 74.00 | I128: 83.80 | J128: 78.90 | K128: 1 | L128: 是
A129: 126 | B129: 251151703904 | C129: 谭明照 | D129: 遂溪县戊戌中学 | E129: 2025001150980 | F129: 语文科组专业技术岗位十一级至十三级 | G129: 2 | H129: 62.40 | I129: 86.30 | J129: 74.35 | K129: 2 | L129: 是
A130: 127 | B130: 251152004110 | C130: 陈洁仪 | D130: 遂溪县戊戌中学 | E130: 2025001150980 | F130: 语文科组专业技术岗位十一级至十三级 | G130: 2 | H130: 63.30 | I130: 78.40 | J130: 70.85 | K130: 3
A131: 128 | B131: 251151604820 | C131: 谭文智 | D131: 遂溪县戊戌中学 | E131: 2025001150980 | F131: 语文科组专业技术岗位十一级至十三级 | G131: 2 | H131: 60.20 | I131: 73.00 | J131: 66.60 | K131: 4
A132: 129 | B132: 251151801906 | C132: 凌丽红 | D132: 遂溪县戊戌中学 | E132: 2025001150980 | F132: 语文科组专业技术岗位十一级至十三级 | G132: 2 | H132: 59.30 | I132: 73.40 | J132: 66.35 | K132: 5
A133: 130 | B133: 251151903729 | C133: 杨芷明 | D133: 遂溪县戊戌中学 | E133: 2025001150980 | F133: 语文科组专业技术岗位十一级至十三级 | G133: 2 | H133: 53.20 | I133: 76.30 | J133: 64.75 | K133: 6
A134: 131 | B134: 251152104301 | C134: 何嘉谕 | D134: 遂溪县戊戌中学 | E134: 2025001150980 | F134: 语文科组专业技术岗位十一级至十三级 | G134: 2 | H134: 53.10 | I134: 缺考
A135: 132 | B135: 251151802028 | C135: 胡春霞 | D135: 遂溪县洋青中学 | E135: 2025001150982 | F135: 语文科组专业技术岗位十一级至十三级 | G135: 2 | H135: 53.00 | I135: 79.00 | J135: =ROUND(H135*0.5+I135*0.5,2) -> 66.00 | K135: 1 | L135: 是
A136: 133 | B136: 251152101901 | C136: 陈颖 | D136: 遂溪县洋青中学 | E136: 2025001150982 | F136: 语文科组专业技术岗位十一级至十三级 | G136: 2 | H136: 52.90 | I136: 77.30 | J136: 65.10 | K136: 2 | L136: 是
A137: 134 | B137: 251152001301 | C137: 戴诚亨 | D137: 遂溪县雷林初级中学 | E137: 2025001150983 | F137: 语文科组专业技术岗位十一级至十三级 | G137: 1 | H137: 54.40 | I137: 74.90 | J137: 64.65 | K137: 1 | L137: 是
A138: 135 | B138: 251151100725 | C138: 杨惠文 | D138: 遂溪县岭北镇岭北初级中学 | E138: 2025001150984 | F138: 语文科组专业技术岗位十一级至十三级 | G138: 4 | H138: 68.00 | I138: 86.20 | J138: 77.10 | K138: 1 | L138: 是
A139: 136 | B139: 251151302513 | C139: 黄洁霞 | D139: 遂溪县岭北镇岭北初级中学 | E139: 2025001150984 | F139: 语文科组专业技术岗位十一级至十三级 | G139: 4 | H139: 68.70 | I139: 84.20 | J139: 76.45 | K139: 2 | L139: 是
A140: 137 | B140: 251151404908 | C140: 石秋月 | D140: 遂溪县岭北镇岭北初级中学 | E140: 2025001150984 | F140: 语文科组专业技术岗位十一级至十三级 | G140: 4 | H140: 64.90 | I140: 82.20 | J140: 73.55 | K140: 3 | L140: 是
A141: 138 | B141: 251151801510 | C141: 周雨莹 | D141: 遂溪县岭北镇岭北初级中学 | E141: 2025001150984 | F141: 语文科组专业技术岗位十一级至十三级 | G141: 4 | H141: 54.50 | I141: 85.30 | J141: 69.90 | K141: 4 | L141: 是
A142: 139 | B142: 251151100522 | C142: 潘雅婷 | D142: 遂溪县岭北镇岭北初级中学 | E142: 2025001150984 | F142: 语文科组专业技术岗位十一级至十三级 | G142: 4 | H142: 50.70 | I142: 88.40 | J142: 69.55 | K142: 5
A143: 140 | B143: 251152302108 | C143: 黄宇玲 | D143: 遂溪县岭北镇岭北初级中学 | E143: 2025001150984 | F143: 语文科组专业技术岗位十一级至十三级 | G143: 4 | H143: 52.90 | I143: 84.60 | J143: 68.75 | K143: 6
A144: 141 | B144: 251151000429 | C144: 梁亚丽 | D144: 遂溪县岭北镇岭北初级中学 | E144: 2025001150984 | F144: 语文科组专业技术岗位十一级至十三级 | G144: 4 | H144: 55.20 | I144: 81.50 | J144: 68.35 | K144: 7
A145: 142 | B145: 251151004004 | C145: 林钰冰 | D145: 遂溪县岭北镇岭北初级中学 | E145: 2025001150984 | F145: 语文科组专业技术岗位十一级至十三级 | G145: 4 | H145: 58.90 | I145: 76.50 | J145: 67.70 | K145: 8
A146: 143 | B146: 251152004614 | C146: 巫廷立 | D146: 遂溪县岭北镇岭北初级中学 | E146: 2025001150984 | F146: 语文科组专业技术岗位十一级至十三级 | G146: 4 | H146: 53.60 | I146: 80.70 | J146: 67.15 | K146: 9
A147: 144 | B147: 251151404820 | C147: 冼木娣 | D147: 遂溪县岭北镇岭北初级中学 | E147: 2025001150984 | F147: 语文科组专业技术岗位十一级至十三级 | G147: 4 | H147: 52.80 | I147: 76.90 | J147: 64.85 | K147: 10
A148: 145 | B148: 251152200326 | C148: 陈海燕 | D148: 遂溪县岭北镇岭北初级中学 | E148: 2025001150984 | F148: 语文科组专业技术岗位十一级至十三级 | G148: 4 | H148: 52.90 | I148: 75.80 | J148: 64.35 | K148: 11
A149: 146 | B149: 251152201210 | C149: 庞英权 | D149: 遂溪县岭北镇岭北初级中学 | E149: 2025001150984 | F149: 语文科组专业技术岗位十一级至十三级 | G149: 4 | H149: 54.20 | I149: 65.90 | J149: 60.05 | K149: 12
A150: 147 | B150: 251150300524 | C150: 梁莹 | D150: 遂溪县岭北镇岭北初级中学 | E150: 2025001150984 | F150: 语文科组专业技术岗位十一级至十三级 | G150: 4 | H150: 51.50 | I150: 缺考
A151: 148 | B151: 251151605217 | C151: 周晶 | D151: 遂溪县黄略镇文车学校 | E151: 2025001150986 | F151: 语文科组专业技术岗位十一级至十三级 | G151: 1 | H151: 56.20 | I151: 79.70 | J151: =ROUND(H151*0.5+I151*0.5,2) -> 67.95 | K151: 1 | L151: 是
A152: 149 | B152: 251151401311 | C152: 林奕伽 | D152: 遂溪县特殊教育学校 | E152: 2025001150987 | F152: 语文科组专业技术岗位十一级至十三级 | G152: 1 | H152: 69.10 | I152: 86.20 | J152: 77.65 | K152: 1 | L152: 是
A153: 150 | B153: 251150700211 | C153: 李乐志 | D153: 遂溪县特殊教育学校 | E153: 2025001150987 | F153: 语文科组专业技术岗位十一级至十三级 | G153: 1 | H153: 60.60 | I153: 73.90 | J153: 67.25 | K153: 2
A154: 151 | B154: 251150500614 | C154: 王君予 | D154: 遂溪县特殊教育学校 | E154: 2025001150987 | F154: 语文科组专业技术岗位十一级至十三级 | G154: 1 | H154: 50.00 | I154: 72.00 | J154: 61.00 | K154: 3
A155: 152 | B155: 251152402618 | C155: 吴敏怡 | D155: 遂溪县遂城第一小学 | E155: 2025001150988 | F155: 语文科组专业技术岗位十一级至十三级 | G155: 2 | H155: 67.90 | I155: 80.80 | J155: 74.35 | K155: 1 | L155: 是
A156: 153 | B156: 251151901129 | C156: 唐锦 | D156: 遂溪县遂城第一小学 | E156: 2025001150988 | F156: 语文科组专业技术岗位十一级至十三级 | G156: 2 | H156: 69.80 | I156: 72.80 | J156: 71.30 | K156: 2 | L156: 是
A157: 154 | B157: 251152001617 | C157: 叶雅怡 | D157: 遂溪县遂城第一小学 | E157: 2025001150988 | F157: 语文科组专业技术岗位十一级至十三级 | G157: 2 | H157: 58.00 | I157: 78.70 | J157: 68.35 | K157: 3
A158: 155 | B158: 251152404710 | C158: 谢彤 | D158: 遂溪县遂城第一小学 | E158: 2025001150988 | F158: 语文科组专业技术岗位十一级至十三级 | G158: 2 | H158: 58.10 | I158: 75.10 | J158: 66.60 | K158: 4
A159: 156 | B159: 251151104026 | C159: 吕超焱 | D159: 遂溪县遂城第一小学 | E159: 2025001150988 | F159: 语文科组专业技术岗位十一级至十三级 | G159: 2 | H159: 54.30 | I159: 78.50 | J159: 66.40 | K159: 5
A160: 157 | B160: 251151000615 | C160: 叶家其 | D160: 遂溪县遂城第一小学 | E160: 2025001150988 | F160: 语文科组专业技术岗位十一级至十三级 | G160: 2 | H160: 51.90 | I160: 78.80 | J160: 65.35 | K160: 6
A161: 158 | B161: 251151902417 | C161: 黄美婷 | D161: 遂溪县遂城第一小学 | E161: 2025001150988 | F161: 语文科组专业技术岗位十一级至十三级 | G161: 2 | H161: 51.20 | I161: 70.50 | J161: 60.85 | K161: 7
A162: 159 | B162: 251151203711 | C162: 刘榕 | D162: 遂溪县遂城第一小学 | E162: 2025001150988 | F162: 语文科组专业技术岗位十一级至十三级 | G162: 2 | H162: 55.80 | I162: 62.10 | J162: 58.95 | K162: 8
A163: 160 | B163: 251151000128 | C163: 林晖茹 | D163: 遂溪县遂城第一小学 | E163: 2025001150988 | F163: 语文科组专业技术岗位十一级至十三级 | G163: 2 | H163: 57.70 | I163: 缺考
A164: 161 | B164: 251150302507 | C164: 符善科 | D164: 遂溪县遂城第三小学 | E164: 2025001150989 | F164: 语文科组专业技术岗位十一级至十三级 | G164: 2 | H164: 58.60 | I164: 86.40 | J164: =ROUND(H164*0.5+I164*0.5,2) -> 72.50 | K164: 1 | L164: 是
A165: 162 | B165: 251150703901 | C165: 李思珺 | D165: 遂溪县遂城第三小学 | E165: 2025001150989 | F165: 语文科组专业技术岗位十一级至十三级 | G165: 2 | H165: 60.00 | I165: 83.80 | J165: =ROUND(H165*0.5+I165*0.5,2) -> 71.90 | K165: 2 | L165: 是
A166: 163 | B166: 251150702828 | C166: 黄凤飞 | D166: 遂溪县遂城第三小学 | E166: 2025001150989 | F166: 语文科组专业技术岗位十一级至十三级 | G166: 2 | H166: 52.20 | I166: 86.40 | J166: =ROUND(H166*0.5+I166*0.5,2) -> 69.30 | K166: 3
A167: 164 | B167: 251150203908 | C167: 叶靖辉 | D167: 遂溪县遂城第三小学 | E167: 2025001150989 | F167: 语文科组专业技术岗位十一级至十三级 | G167: 2 | H167: 54.80 | I167: 81.90 | J167: =ROUND(H167*0.5+I167*0.5,2) -> 68.35 | K167: 4
A168: 165 | B168: 251151104319 | C168: 黎钟文 | D168: 遂溪县遂城第三小学 | E168: 2025001150989 | F168: 语文科组专业技术岗位十一级至十三级 | G168: 2 | H168: 50.00 | I168: 81.40 | J168: =ROUND(H168*0.5+I168*0.5,2) -> 65.70 | K168: 5
A169: 166 | B169: 251151404611 | C169: 苏文婷 | D169: 遂溪县遂城第三小学 | E169: 2025001150989 | F169: 语文科组专业技术岗位十一级至十三级 | G169: 2 | H169: 61.30 | I169: 缺考
A170: 167 | B170: 251151003011 | C170: 黄琳娣 | D170: 遂溪县遂城第四小学 | E170: 2025001150990 | F170: 语文科组专业技术岗位十一级至十三级 | G170: 2 | H170: 57.10 | I170: 87.50 | J170: =ROUND(H170*0.5+I170*0.5,2) -> 72.30 | K170: 1 | L170: 是
A171: 168 | B171: 251151704714 | C171: 黄鸿燕 | D171: 遂溪县遂城第四小学 | E171: 2025001150990 | F171: 语文科组专业技术岗位十一级至十三级 | G171: 2 | H171: 56.70 | I171: 87.20 | J171: 71.95 | K171: 2 | L171: 是
A172: 169 | B172: 251151404117 | C172: 张桂榕 | D172: 遂溪县遂城第四小学 | E172: 2025001150990 | F172: 语文科组专业技术岗位十一级至十三级 | G172: 2 | H172: 54.30 | I172: 82.50 | J172: 68.40 | K172: 3
A173: 170 | B173: 251152400708 | C173: 徐秋媚 | D173: 遂溪县遂城第四小学 | E173: 2025001150990 | F173: 语文科组专业技术岗位十一级至十三级 | G173: 2 | H173: 51.30 | I173: 80.10 | J173: 65.70 | K173: 4
A174: 171 | B174: 251152405024 | C174: 廖文丽 | D174: 遂溪县遂城第五小学 | E174: 2025001150991 | F174: 语文科组专业技术岗位十一级至十三级 | G174: 2 | H174: 66.60 | I174: 78.00 | J174: 72.30 | K174: 1 | L174: 是
A175: 172 | B175: 251151204319 | C175: 李莹 | D175: 遂溪县遂城第五小学 | E175: 2025001150991 | F175: 语文科组专业技术岗位十一级至十三级 | G175: 2 | H175: 61.40 | I175: 71.90 | J175: 66.65 | K175: 2 | L175: 是
A176: 173 | B176: 251151601502 | C176: 杨茜朝 | D176: 遂溪县遂城第五小学 | E176: 2025001150991 | F176: 语文科组专业技术岗位十一级至十三级 | G176: 2 | H176: 51.40 | I176: 81.20 | J176: 66.30 | K176: 3
A177: 174 | B177: 251151304402 | C177: 颜章杰 | D177: 遂溪县遂城第五小学 | E177: 2025001150991 | F177: 语文科组专业技术岗位十一级至十三级 | G177: 2 | H177: 53.10 | I177: 79.40 | J177: 66.25 | K177: 4
A178: 175 | B178: 251151601730 | C178: 麦杏燕 | D178: 遂溪县遂城第五小学 | E178: 2025001150991 | F178: 语文科组专业技术岗位十一级至十三级 | G178: 2 | H178: 53.80 | I178: 76.60 | J178: 65.20 | K178: 5
A179: 176 | B179: 251152301729 | C179: 叶贝榆 | D179: 遂溪县遂城第五小学 | E179: 2025001150991 | F179: 语文科组专业技术岗位十一级至十三级 | G179: 2 | H179: 52.50 | I179: 76.00 | J179: 64.25 | K179: 6
A180: 177 | B180: 251151800528 | C180: 吴信煜 | D180: 遂溪县遂城第五小学 | E180: 2025001150991 | F180: 语文科组专业技术岗位十一级至十三级 | G180: 2 | H180: 51.10 | I180: 75.30 | J180: 63.20 | K180: 7
A181: 178 | B181: 251152202816 | C181: 王思敏 | D181: 遂溪县遂城第五小学 | E181: 2025001150991 | F181: 语文科组专业技术岗位十一级至十三级 | G181: 2 | H181: 52.60 | I181: 缺考
A182: 179 | B182: 251150701322 | C182: 黄厚华 | D182: 遂溪县遂城第九小学 | E182: 2025001150992 | F182: 语文科组专业技术岗位十一级至十三级 | G182: 3 | H182: 68.70 | I182: 87.00 | J182: =ROUND(H182*0.5+I182*0.5,2) -> 77.85 | K182: 1 | L182: 是
A183: 180 | B183: 251151505927 | C183: 李沛铭 | D183: 遂溪县遂城第九小学 | E183: 2025001150992 | F183: 语文科组专业技术岗位十一级至十三级 | G183: 3 | H183: 70.10 | I183: 75.80 | J183: 72.95 | K183: 2 | L183: 是
A184: 181 | B184: 251150303522 | C184: 陈嫣姗 | D184: 遂溪县遂城第九小学 | E184: 2025001150992 | F184: 语文科组专业技术岗位十一级至十三级 | G184: 3 | H184: 58.40 | I184: 86.50 | J184: 72.45 | K184: 3 | L184: 是
A185: 182 | B185: 251151303610 | C185: 郑柳靖 | D185: 遂溪县遂城第九小学 | E185: 2025001150992 | F185: 语文科组专业技术岗位十一级至十三级 | G185: 3 | H185: 62.70 | I185: 81.10 | J185: 71.90 | K185: 4
A186: 183 | B186: 251150208018 | C186: 沈华茹 | D186: 遂溪县遂城第九小学 | E186: 2025001150992 | F186: 语文科组专业技术岗位十一级至十三级 | G186: 3 | H186: 51.50 | I186: 82.70 | J186: 67.10 | K186: 5
A187: 184 | B187: 251151901317 | C187: 陈雪 | D187: 遂溪县遂城第九小学 | E187: 2025001150992 | F187: 语文科组专业技术岗位十一级至十三级 | G187: 3 | H187: 55.00 | I187: 77.60 | J187: 66.30 | K187: 6
A188: 185 | B188: 251151701814 | C188: 陈春月 | D188: 遂溪县遂城第九小学 | E188: 2025001150992 | F188: 语文科组专业技术岗位十一级至十三级 | G188: 3 | H188: 54.90 | I188: 77.10 | J188: 66.00 | K188: 7
A189: 186 | B189: 251151601322 | C189: 蔡莹蓉 | D189: 遂溪县遂城第九小学 | E189: 2025001150992 | F189: 语文科组专业技术岗位十一级至十三级 | G189: 3 | H189: 54.30 | I189: 75.40 | J189: 64.85 | K189: 8 | M189: 综合成绩同分
A190: 187 | B190: 251151002106 | C190: 蔡明珍 | D190: 遂溪县遂城第九小学 | E190: 2025001150992 | F190: 语文科组专业技术岗位十一级至十三级 | G190: 3 | H190: 54.10 | I190: 75.60 | J190: 64.85 | K190: 8 | M190: 综合成绩同分
A191: 188 | B191: 251151103712 | C191: 林思羽 | D191: 遂溪县遂城第九小学 | E191: 2025001150992 | F191: 语文科组专业技术岗位十一级至十三级 | G191: 3 | H191: 52.80 | I191: 75.40 | J191: 64.10 | K191: 10
A192: 189 | B192: 251150100504 | C192: 姚石培 | D192: 遂溪县遂城第九小学 | E192: 2025001150992 | F192: 语文科组专业技术岗位十一级至十三级 | G192: 3 | H192: 53.20 | I192: 74.70 | J192: 63.95 | K192: 11
A193: 190 | B193: 251151800425 | C193: 吴润慧 | D193: 遂溪县遂城第九小学 | E193: 2025001150993 | F193: 语文科组专业技术岗位十一级至十三级 | G193: 2 | H193: 67.90 | I193: 81.60 | J193: 74.75 | K193: 1 | L193: 是
A194: 191 | B194: 251150502314 | C194: 朱文婷 | D194: 遂溪县遂城第九小学 | E194: 2025001150993 | F194: 语文科组专业技术岗位十一级至十三级 | G194: 2 | H194: 52.10 | I194: 84.00 | J194: 68.05 | K194: 2 | L194: 是
A195: 192 | B195: 251151302724 | C195: 张文清 | D195: 遂溪县遂城第九小学 | E195: 2025001150993 | F195: 语文科组专业技术岗位十一级至十三级 | G195: 2 | H195: 50.00 | I195: 75.70 | J195: 62.85 | K195: 3
A196: 193 | B196: 251152303107 | C196: 黄彩倩 | D196: 遂溪县遂城第十一小学 | E196: 2025001150994 | F196: 语文科组专业技术岗位十一级至十三级 | G196: 1 | H196: 64.50 | I196: 85.60 | J196: 75.05 | K196: 1 | L196: 是
A197: 194 | B197: 251151301730 | C197: 黎莉 | D197: 遂溪县遂城第十一小学 | E197: 2025001150994 | F197: 语文科组专业技术岗位十一级至十三级 | G197: 1 | H197: 66.80 | I197: 76.40 | J197: 71.60 | K197: 2
A198: 195 | B198: 251150802321 | C198: 陈锦艺 | D198: 遂溪县遂城第十一小学 | E198: 2025001150994 | F198: 语文科组专业技术岗位十一级至十三级 | G198: 1 | H198: 52.70 | I198: 68.90 | J198: 60.80 | K198: 3
A199: 196 | B199: 251150200309 | C199: 邓文瑜 | D199: 遂溪县遂城第十三小学 | E199: 2025001150995 | F199: 语文科组专业技术岗位十一级至十三级 | G199: 4 | H199: 66.20 | I199: 84.30 | J199: 75.25 | K199: 1 | L199: 是
A200: 197 | B200: 251151200509 | C200: 刘咏咏 | D200: 遂溪县遂城第十三小学 | E200: 2025001150995 | F200: 语文科组专业技术岗位十一级至十三级 | G200: 4 | H200: 58.20 | I200: 83.20 | J200: 70.70 | K200: 2 | L200: 是
... 321 more rows
